fUST/lending_fUST_20260428
["ID","MTS","AMOUNT","RATE_DAILY","PERIOD"]
[421274467,1777319438566,-300.0,0.00012647,2]
[421274468,1777319438576,-300.0,0.00012647,2]
[421274469,1777319438585,-600.0,0.00012899,2]
[421274470,1777319438595,-150.0,0.00013034,2]
[421274471,1777319438604,-160.0,0.00013654,2]
[421274472,1777319438614,-1000.0,0.00013699,2]
[421274473,1777319438623,-720.0,0.00014189,2]
[421274474,1777319438632,-442.0,0.00014891,2]
[421274475,1777319438642,-185.0,0.00014891,2]
[421274476,1777319438652,-500.0,0.00014898,2]
[421274477,1777319438661,-500.0,0.00014898,2]
[421274478,1777319438670,-500.0,0.00014898,2]
[421274479,1777319438680,-243.49,0.00014898,2]
[421274480,1777319438689,-177.0,0.00015034,2]
[421274481,1777319438699,-821.0,0.00015301,2]
[421274482,1777319438708,-821.0,0.0001544,2]
[421274483,1777319438718,-864.0,0.00015608,2]
[421274484,1777319438727,-537.6845,0.00016186,2]
[421274485,1777319438737,-165.8074548,0.00016186,2]
[421274486,1777319438747,-1496.80821339,0.00016186,2]
[421274487,1777319438757,-502.23086433,0.00016325,5]
[421274488,1777319438767,-821.0,0.00016747,2]
[421274489,1777319438776,-821.0,0.00016802,2]
[421274490,1777319438786,-325.4780488,0.00016987,2]
[421274491,1777319438796,-204.0,0.00017034,2]
[421274492,1777319438806,-1000.0,0.00017168,2]
[421274493,1777319438816,-160.0,0.00017338,3]
[421274494,1777319438825,-150.12206066,0.00017671,2]
[421274495,1777319438835,-516.07774025,0.000178,2]
[421274496,1777319438844,-323.9956839,0.00017809,2]
[421274497,1777319438853,-455.9452987,0.00017809,2]
[421274498,1777319438863,-151.0,0.00017809,2]
[421274499,1777319438872,-325.5033173,0.00017809,2]
[421274500,1777319438881,-455.9805711,0.00017809,2]
[421274501,1777319438890,-821.0,0.00017843,2]
[421274502,1777319438900,-821.0,0.00017852,2]
[421274503,1777319438909,-821.0,0.00017859,2]
[421274504,1777319438918,-821.0,0.00017859,2]
[421274505,1777319438927,-821.0,0.00017862,2]
[421274506,1777319438937,-821.0,0.00017862,2]
[421274507,1777319438947,-442.0,0.00017891,2]
[421274508,1777319439202,-185.0,0.00017891,2]
[421274509,1777319439212,-821.0,0.00017898,2]
[421274510,1777319439222,-821.0,0.00017898,2]
[421274511,1777319439232,-1893.52969468,0.00018,2]
[421274512,1777319439241,-831.0,0.00018045,2]
[421274513,1777319439251,-821.0,0.00018049,2]
[421274514,1777319439260,-1419.763,0.000181,2]
[421274515,1777319439270,-1419.763,0.000181,2]
[421274516,1777319439279,-1419.76,0.000181,2]
[421274517,1777319439288,-301.7649,0.000181,2]
[421274518,1777319439298,-301.53,0.000181,2]
[421274519,1777319439308,-821.0,0.00018178,2]
[421274520,1777319439317,-1893.52969463,0.00018271,2]
[421274521,1777319439327,-176.58,0.00018392,7]
[421274522,1777319439337,-235.37,0.00018392,7]
[421274523,1777319439346,-164.92304418,0.00018443,2]
[421274524,1777319439355,-192.456,0.000185,2]
[421274525,1777319439364,-821.0,0.0001851,2]
[421274526,1777319439374,-1893.52969463,0.00018543,2]
[421274527,1777319439383,-326.0,0.0001863,3]
[421274528,1777319439392,-481272.0854726,0.00018699,7]
[421274529,1777319439413,-50868.3206048,0.00018699,7]
[421274530,1777319439428,-1756.27966031,0.00018699,7]
[421274536,1777319440650,-10556.03994805,0.00018699,7]
[421274537,1777319440661,-11515.60000023,0.00018699,7]
[421274538,1777319440673,-3687.01289079,0.00018699,7]
[421274543,1777319443270,-1196.60588996,0.000185,2]
[421274544,1777319443379,-699.79168104,0.000185,2]
[421274545,1777319443389,-910.11691703,0.00018699,7]
[421274546,1777319443400,-1664.85319521,0.00018699,7]
[421274547,1777319443412,-911.91340463,0.00018699,7]
[421274548,1777319443423,-1393.10945299,0.00018699,7]
[421274549,1777319443435,-883.81461115,0.00018699,7]
[421274560,1777319446725,-3476.04027729,0.00018699,7]
[421274561,1777319446751,-69381.55356492,0.00018699,7]
[421274562,1777319446760,-23575.643928,0.00018712,2]
[421274563,1777319446770,-195.01,0.00018803,7]
[421274564,1777319446780,-821.0,0.00018812,2]
[421274565,1777319446789,-1893.52969463,0.00018814,2]
[421274566,1777319446798,-821.0,0.0001883,2]
[421274567,1777319446808,-160.0,0.0001888,4]
[421274568,1777319446817,-1000.0,0.00018885,2]
[421274569,1777319446826,-244.0,0.00018885,2]
[421274570,1777319446834,-217.0556692,0.00018899,2]
[421274571,1777319446843,-227.22548754,0.00018899,2]
[421274572,1777319446852,-327.14192019,0.00018899,2]
[421274573,1777319446862,-2424.6,0.000189,2]
[421274574,1777319446871,-158.1489025,0.000189,7]
[421274575,1777319446880,-158.0,0.000189,10]
[421274576,1777319446889,-204.84628363,0.000189,2]
[421274577,1777319446899,-353971.02984378,0.000189,2]
[421274578,1777319446911,-34639.1523914,0.000189,2]
[421274579,1777319446933,-3441.53250546,0.000189,2]
[421274580,1777319446957,-58207.01152582,0.000189,2]
[421274581,1777319446969,-31321.84848189,0.000189,2]
[421274589,1777319524721,172.92553932,0.00025115,120]
[421274631,1777320640788,-1655.73839223,0.0001316,10]
[421274632,1777320640799,-150.0,0.00013495,2]
[421274633,1777320640809,-612.0,0.00013495,2]
[421274634,1777320640819,-1000.0,0.00013699,2]
[421274635,1777320640829,-185.0,0.00014978,2]
[421274636,1777320640839,-442.0,0.00014978,2]
[421274637,1777320640849,-177.0,0.00015495,2]
[421274638,1777320640859,-150.0,0.00016,2]
[421274639,1777320640870,-198.0,0.00016411,3]
[421274640,1777320640880,-220.0865898,0.00016892,2]
[421274641,1777320640890,-160.0,0.00016972,2]
[421274642,1777320640901,-175.04,0.00017435,2]
[421274643,1777320640910,-204.0,0.00017495,2]
[421274644,1777320640920,-185.0,0.00017978,2]
[421274645,1777320640930,-442.0,0.00017978,2]
[421274646,1777320640940,-584.08075524,0.00018,8]
[421274647,1777320640950,-247.38456626,0.00018298,2]
[421274648,1777320640961,-300.0,0.00018396,2]
[421274649,1777320640971,-500.0,0.00018397,2]
[421274650,1777320640982,-170.00801827,0.00018397,2]
[421274651,1777320640992,-324.34953671,0.00018397,2]
[421274652,1777320641003,-478.78534887,0.00018397,2]
[421274653,1777320641013,-500.0,0.00018397,2]
[421274654,1777320641023,-530.69185656,0.00018397,2]
[421274655,1777320641033,-408.99987152,0.00018397,2]
[421274656,1777320641043,-500.0,0.00018397,2]
[421274657,1777320641053,-500.0,0.00018397,2]
[421274658,1777320641063,-500.0,0.00018397,2]
[421274659,1777320641072,-391.69161498,0.00018397,2]
[421274660,1777320641082,-500.0,0.00018397,2]
[421274661,1777320641091,-500.0,0.00018397,2]
[421274662,1777320641101,-500.0,0.00018397,2]
[421274663,1777320641111,-500.0,0.00018397,2]
[421274664,1777320641121,-500.0,0.00018397,2]
[421274665,1777320641131,-500.0,0.00018397,2]
[421274666,1777320641140,-500.0,0.00018397,2]
[421274667,1777320641150,-454.62188576,0.00018397,2]
[421274668,1777320641160,-500.0,0.00018397,2]
[421274669,1777320641170,-500.0,0.00018397,2]
[421274670,1777320641180,-500.0,0.00018397,2]
[421274671,1777320641189,-500.0,0.00018397,2]
[421274672,1777320641199,-500.0,0.00018397,2]
[421274673,1777320641209,-500.0,0.00018397,2]
[421274674,1777320641219,-555.19093393,0.00018397,2]
[421274675,1777320641229,-500.0,0.00018397,2]
[421274676,1777320641239,-39856.06029787,0.00018398,2]
[421274677,1777320641260,-744.24204284,0.00018398,2]
[421274678,1777320641272,-1000.0,0.00018398,2]
[421274738,1777320648273,-841.45616995,0.00018398,2]
[421274740,1777320648289,-1365.03796201,0.00018398,2]
[421274750,1777320648385,-262616.74575546,0.00018398,2]
[421274757,1777320947796,3166.0,0.00024658,120]
[421274759,1777321337310,500.0,0.00025083,120]
[421274760,1777321451977,2500.06710211,0.00025083,120]
[421274761,1777321751131,-445.03961945,0.00013699,2]
[421274762,1777321758169,-554.96038055,0.00013699,2]
[421274763,1777321758192,-615.0,0.00013699,2]
[421274764,1777321758216,-150.0,0.00013939,2]
[421274765,1777321758239,-442.0,0.00015617,2]
[421274766,1777321758261,-185.0,0.00015617,2]
[421274767,1777321758284,-177.0,0.00015939,2]
[421274768,1777321768313,703.575,0.00015939,2]
[421274769,1777321832002,442.0,0.00015617,2]
[421274787,1777321832415,-157.0,0.00016384,3]
[421274788,1777321832426,-160.0,0.00017213,2]
[421274789,1777321832436,-138.01114428,0.00017939,2]
[421274809,1777321838695,-65.98885572,0.00017939,2]
[421274810,1777321838704,-510.0,0.0001805,2]
[421274811,1777321838715,-939.0,0.0001805,2]
[421274812,1777321838724,-559.0,0.0001805,2]
[421274813,1777321838734,-197.0,0.0001805,2]
[421274814,1777321838743,-170.0,0.0001805,2]
[421274815,1777321838752,-1645.84804893,0.0001805,2]
[421274828,1777321843038,185.0,0.00015617,2]
[421274877,1777321847093,-175.0,0.00016384,3]
[421274879,1777321847105,-1835.15195107,0.0001805,2]
[421274881,1777321847116,-303.0,0.0001805,2]
[421274883,1777321847126,-192.45627001,0.00018298,2]
[421274884,1777321847136,-2637.02256094,0.00018298,2]
[421274886,1777321847147,-4541.60763874,0.00018398,2]
[421274890,1777322289100,2501.66,0.0002384,120]
[421274891,1777322290100,2501.71,0.00024038,120]
[421274892,1777322291397,2501.71,0.00024236,120]
[421274893,1777322292682,2501.71,0.00024434,120]
[421274894,1777322293975,2501.71,0.00024632,120]
[421274895,1777322453449,100089.4520509,0.00024649,120]
[421274896,1777322747137,-1000.0,0.00013699,2]
[421274897,1777322747158,-615.0,0.00013699,2]
[421274898,1777322747180,-150.0,0.00014346,2]
[421274899,1777322747201,-185.0,0.00016287,2]
[421274900,1777322747222,-439.0,0.00016287,2]
[421274901,1777322747244,-177.0,0.00016346,2]
[421274902,1777322747265,-170.0,0.00016384,3]
[421274903,1777322747287,-821.0,0.00017578,2]
[421274904,1777322747310,-487.965735,0.00017899,2]
[421274905,1777322747332,-339.46565933,0.00017899,2]
[421274906,1777322747351,-800.0,0.000179,3]
[421274907,1777322747372,-800.0,0.000179,4]
[421274908,1777322747398,-10179.75242117,0.000179,2]
[421274928,1777323039054,-1755.54277787,0.00013,2]
[421274929,1777323039067,-1123.74722213,0.00013,2]
[421274930,1777323039077,-1000.0,0.00013699,2]
[421274931,1777323039087,-150.0,0.00015041,2]
[421274932,1777323039097,-185.0,0.00016287,2]
[421274933,1777323039107,-157.0,0.00016384,3]
[421274934,1777323039117,-177.0,0.00017041,2]
[421274935,1777323039127,-6856.738224,0.000178,2]
[421274936,1777323039137,-160.0,0.00017821,2]
[421274937,1777323039147,-23192.04092175,0.000179,2]
[421274938,1777323039156,-44817.65,0.0001798,2]
[421274939,1777323039166,-353045.0,0.00018,2]
[421274940,1777323039176,-622868.96318089,0.00018032,2]
[421274941,1777323039186,-1511.46481845,0.00018297,2]
[421274942,1777323039195,-1511.46481844,0.00018322,2]
[421274943,1777323039205,-1511.46481844,0.00018348,2]
[421274944,1777323039214,-1511.46481844,0.00018373,2]
[421274945,1777323039224,-500.0,0.00018397,2]
[421274946,1777323039234,-500.0,0.00018397,2]
[421274947,1777323039244,-500.0,0.00018397,2]
[421274948,1777323039254,-1511.46481844,0.00018398,2]
[421274949,1777323039263,-500.0,0.00018497,2]
[421274950,1777323039273,-500.0,0.00018497,2]
[421274951,1777323039283,-500.0,0.00018497,2]
[421274952,1777323039293,-500.0,0.00018497,2]
[421274953,1777323039302,-86830.67960988,0.00018498,2]
[421274954,1777323039312,-190.497187,0.00018498,2]
[421274955,1777323039322,-190.497187,0.00018498,2]
[421274956,1777323039332,-190.497187,0.00018498,2]
[421274957,1777323039342,-190.497187,0.00018498,2]
[421274958,1777323039352,-151.0,0.00018498,2]
[421274959,1777323039363,-376.16863244,0.00018522,2]
[421274960,1777323039373,-154.5844669,0.00018726,2]
[421274961,1777323039383,-156.46959284,0.00018726,2]
[421274962,1777323039393,-154.03599555,0.00018726,2]
[421274963,1777323039402,-202.94380702,0.00018726,2]
[421274964,1777323039412,-155.7883361,0.00018726,2]
[421274965,1777323039421,-205.3201709,0.00018726,2]
[421274966,1777323039431,-221.89232786,0.00018726,2]
[421274967,1777323039441,-156.20769032,0.00018726,2]
[421274968,1777323039451,-500.0,0.00018749,2]
[421274969,1777323039461,-821.0,0.00018858,2]
[421274970,1777323039472,-767.075,0.000189,2]
[421274971,1777323039481,-500.0,0.00018999,2]
[421274972,1777323039492,-500.0,0.00018999,2]
[421274973,1777323039502,-500.0,0.00018999,2]
[421274974,1777323039512,-500.0,0.00018999,2]
[421274975,1777323039522,-538.08,0.00018999,2]
[421274976,1777323039532,-10002.18156835,0.00019,2]
[421274977,1777323039541,-211.78042323,0.00019,2]
[421274978,1777323039551,-406.15784718,0.00019,3]
[421274979,1777323039561,-200.0,0.00019,7]
[421274980,1777323039571,-171798.29785209,0.00019,7]
[421274981,1777323039581,-45461.35289842,0.00019,7]
[421274982,1777323039590,-2114.22582359,0.00019,2]
[421274983,1777323039601,-1000.0,0.00019,2]
[421274984,1777323039611,-658.04,0.00019,2]
[421274985,1777323039621,-4897.51456561,0.00019,4]
[421274986,1777323039631,-500.0,0.00019,2]
[421274987,1777323039641,-151.0,0.00019,2]
[421274988,1777323039651,-151.0,0.00019,2]
[421274989,1777323039662,-151.0,0.00019,2]
[421274990,1777323039672,-151.0,0.00019,2]
[421274991,1777323039682,-393.96,0.00019,2]
[421274992,1777323039692,-393.96,0.00019,2]
[421274993,1777323039702,-393.96,0.00019,2]
[421274994,1777323039712,-393.96,0.00019,2]
[421274995,1777323039722,-151.0,0.00019,2]
[421274996,1777323039732,-151.0,0.00019,2]
[421274997,1777323039742,-151.0,0.00019,2]
[421274998,1777323039752,-151.0,0.00019,2]
[421274999,1777323039763,-151.0,0.00019,2]
[421275000,1777323039772,-151.0,0.00019,2]
[421275001,1777323039783,-151.0,0.00019,2]
[421275002,1777323039792,-151.0,0.00019,2]
[421275003,1777323039803,-151.0,0.00019,2]
[421275004,1777323039812,-151.0,0.00019,2]
[421275005,1777323039822,-375.84,0.00019,2]
[421275006,1777323039832,-375.84,0.00019,2]
[421275007,1777323039842,-375.84,0.00019,2]
[421275008,1777323039852,-375.84,0.00019,2]
[421275009,1777323039862,-298.139477,0.00019,2]
[421275010,1777323039871,-298.139477,0.00019,2]
[421275011,1777323039881,-298.139477,0.00019,2]
[421275012,1777323039891,-298.139477,0.00019,2]
[421275013,1777323039900,-151.0,0.00019,2]
[421275014,1777323039911,-151.0,0.00019,2]
[421275015,1777323039920,-151.0,0.00019,2]
[421275016,1777323039930,-151.0,0.00019,2]
[421275017,1777323039940,-151.0,0.00019,2]
[421275018,1777323039950,-151.0,0.00019,2]
[421275019,1777323039960,-151.0,0.00019,2]
[421275020,1777323039970,-151.0,0.00019,2]
[421275021,1777323039980,-151.0,0.00019,2]
[421275022,1777323039990,-151.0,0.00019,2]
[421275023,1777323039999,-151.0,0.00019,2]
[421275024,1777323040010,-160.0,0.00019,7]
[421275025,1777323040019,-190.497187,0.00019,2]
[421275026,1777323040029,-190.497187,0.00019,2]
[421275027,1777323040039,-190.497187,0.00019,2]
[421275028,1777323040048,-190.497187,0.00019,2]
[421275029,1777323040058,-190.497187,0.00019,2]
[421275030,1777323040068,-190.497187,0.00019,2]
[421275031,1777323040078,-190.497187,0.00019,2]
[421275032,1777323040087,-190.497187,0.00019,2]
[421275033,1777323040097,-152.171931,0.00019,2]
[421275034,1777323040107,-151.0,0.00019,2]
[421275035,1777323040117,-151.0,0.00019,2]
[421275036,1777323040126,-151.0,0.00019,2]
[421275037,1777323040137,-151.0,0.00019,2]
[421275038,1777323040147,-151.0,0.00019,2]
[421275039,1777323040157,-151.0,0.00019,2]
[421275040,1777323040167,-151.0,0.00019,2]
[421275041,1777323040177,-159.968434,0.00019,2]
[421275042,1777323040187,-641.241193,0.00019,2]
[421275043,1777323040197,-641.241193,0.00019,2]
[421275044,1777323040206,-641.241193,0.00019,2]
[421275045,1777323040216,-641.241193,0.00019,2]
[421275046,1777323040226,-641.241193,0.00019,2]
[421275047,1777323040236,-641.241193,0.00019,2]
[421275048,1777323040246,-641.241193,0.00019,2]
[421275049,1777323040256,-641.241193,0.00019,2]
[421275050,1777323040265,-151.0,0.00019,2]
[421275051,1777323040275,-151.0,0.00019,2]
[421275052,1777323040285,-151.0,0.00019,2]
[421275053,1777323040294,-151.0,0.00019,2]
[421275054,1777323040304,-151.0,0.00019,2]
[421275055,1777323040314,-195.031122,0.00019,2]
[421275056,1777323040324,-151.0,0.00019,2]
[421275057,1777323040334,-151.0,0.00019,2]
[421275058,1777323040343,-151.0,0.00019,2]
[421275059,1777323040353,-151.0,0.00019,2]
[421275060,1777323040363,-204.0,0.00019041,2]
[421275061,1777323040374,-151.0,0.00019068,2]
[421275062,1777323040601,-151.0,0.00019068,2]
[421275063,1777323040611,-294.507788,0.00019068,2]
[421275064,1777323040621,-151.0,0.00019078,2]
[421275065,1777323040630,-151.0,0.00019078,2]
[421275066,1777323040640,-151.0,0.00019078,2]
[421275067,1777323040651,-151.0,0.00019078,2]
[421275068,1777323040660,-151.0,0.00019078,2]
[421275069,1777323040670,-206.943379,0.00019078,2]
[421275070,1777323040680,-151.0,0.00019078,2]
[421275071,1777323040690,-375.84,0.00019078,2]
[421275072,1777323040699,-375.84,0.00019078,2]
[421275073,1777323040709,-375.84,0.00019078,2]
[421275074,1777323040719,-375.84,0.00019078,2]
[421275075,1777323040729,-298.139477,0.00019078,2]
[421275076,1777323040739,-298.139477,0.00019078,2]
[421275077,1777323040749,-298.139477,0.00019078,2]
[421275078,1777323040759,-298.139477,0.00019078,2]
[421275079,1777323040769,-151.0,0.00019078,2]
[421275080,1777323040779,-151.0,0.00019078,2]
[421275081,1777323040789,-151.0,0.00019078,2]
[421275082,1777323040799,-151.0,0.00019078,2]
[421275083,1777323040809,-151.0,0.00019078,2]
[421275084,1777323040819,-151.0,0.00019078,2]
[421275085,1777323040828,-151.0,0.00019078,2]
[421275086,1777323040838,-151.0,0.00019078,2]
[421275087,1777323040848,-151.0,0.00019078,2]
[421275088,1777323040858,-151.0,0.00019078,2]
[421275089,1777323040868,-151.0,0.00019078,2]
[421275090,1777323040878,-151.0,0.00019078,2]
[421275091,1777323040887,-151.0,0.00019078,2]
[421275092,1777323040897,-4207.52875271,0.00019078,2]
[421275093,1777323040907,-300.0,0.000191,2]
[421275094,1777323040917,-192.357023,0.00019177,2]
[421275095,1777323040927,-151.0,0.00019177,2]
[421275096,1777323040936,-151.0,0.00019177,2]
[421275097,1777323040946,-151.0,0.00019177,2]
[421275098,1777323040956,-393.96,0.00019177,2]
[421275099,1777323040966,-393.96,0.00019177,2]
[421275100,1777323040975,-393.96,0.00019177,2]
[421275101,1777323040986,-393.96,0.00019177,2]
[421275102,1777323040996,-151.0,0.00019177,2]
[421275103,1777323041006,-151.0,0.00019177,2]
[421275104,1777323041016,-151.0,0.00019177,2]
[421275105,1777323041026,-1666.80881806,0.00019177,2]
[421275106,1777323041036,-1666.80881806,0.00019177,2]
[421275107,1777323041046,-1666.80881806,0.00019177,2]
[421275108,1777323041055,-1666.80881806,0.00019177,2]
[421275109,1777323041065,-1666.80881806,0.00019177,2]
[421275110,1777323041075,-1666.80881806,0.00019177,2]
[421275111,1777323041084,-1666.80881806,0.00019177,2]
[421275112,1777323041094,-1666.80881806,0.00019177,2]
[421275113,1777323041104,-1666.80881806,0.00019177,2]
[421275114,1777323041114,-1666.80881806,0.00019177,2]
[421275115,1777323041124,-1666.80881806,0.00019177,2]
[421275116,1777323041134,-1666.80881805,0.00019177,2]
[421275117,1777323041144,-1666.80881805,0.00019177,2]
[421275118,1777323041154,-1666.80881805,0.00019177,2]
[421275119,1777323041163,-1666.80881805,0.00019177,2]
[421275120,1777323041173,-1666.80881805,0.00019177,2]
[421275121,1777323041183,-1666.80881805,0.00019177,2]
[421275122,1777323041192,-1666.80881805,0.00019177,2]
[421275123,1777323041202,-1666.80881805,0.00019177,2]
[421275124,1777323041211,-1666.80881805,0.00019177,2]
[421275125,1777323041221,-500.0,0.00019178,2]
[421275126,1777323041231,-500.0,0.00019178,2]
[421275127,1777323041241,-500.0,0.00019178,2]
[421275128,1777323041251,-500.0,0.00019178,2]
[421275129,1777323041260,-500.0,0.00019178,2]
[421275130,1777323041270,-870.93,0.00019178,2]
[421275131,1777323041280,-500.0,0.00019178,2]
[421275132,1777323041289,-993.92,0.00019178,2]
[421275133,1777323041299,-2264.98,0.00019178,2]
[421275134,1777323041309,-1143.65,0.00019178,2]
[421275135,1777323041319,-3021.34,0.00019178,2]
[421275136,1777323041329,-500.0,0.00019178,2]
[421275137,1777323041339,-700.45,0.00019178,2]
[421275138,1777323041349,-1120.22,0.00019178,2]
[421275139,1777323041359,-1111.32,0.00019178,2]
[421275140,1777323041368,-500.0,0.00019178,2]
[421275141,1777323041378,-500.0,0.00019178,2]
[421275142,1777323041388,-1832.73,0.00019178,2]
[421275143,1777323041398,-500.0,0.00019178,2]
[421275144,1777323041408,-500.0,0.00019178,2]
[421275145,1777323041418,-500.0,0.00019178,2]
[421275146,1777323041429,-500.0,0.00019178,2]
[421275147,1777323041441,-500.0,0.00019178,2]
[421275148,1777323041451,-500.0,0.00019178,2]
[421275149,1777323041460,-500.0,0.00019178,2]
[421275150,1777323041470,-500.0,0.00019178,2]
[421275151,1777323041480,-500.0,0.00019178,2]
[421275152,1777323041490,-569.92672581,0.00019178,2]
[421275153,1777323041500,-1820.46,0.00019178,2]
[421275154,1777323041509,-952.66,0.00019178,2]
[421275155,1777323041519,-789.51,0.00019178,2]
[421275156,1777323041529,-839.6,0.00019178,2]
[421275157,1777323041539,-500.0,0.00019178,2]
[421275158,1777323041548,-726.89,0.00019178,2]
[421275159,1777323041558,-500.0,0.00019178,2]
[421275160,1777323041568,-500.0,0.00019178,2]
[421275161,1777323041579,-1463.22,0.00019178,2]
[421275162,1777323041589,-500.0,0.00019178,2]
[421275163,1777323041599,-739.4,0.00019178,2]
[421275164,1777323041609,-663.36,0.00019178,2]
[421275165,1777323041619,-500.0,0.00019178,2]
[421275166,1777323041629,-1438.32,0.00019178,2]
[421275167,1777323041639,-500.0,0.00019178,2]
[421275168,1777323041648,-2705.97,0.00019178,2]
[421275169,1777323041658,-5151.57,0.00019178,2]
[421275170,1777323041668,-763.08,0.00019178,2]
[421275171,1777323041678,-500.0,0.00019178,2]
[421275172,1777323041688,-500.0,0.00019178,2]
[421275173,1777323041698,-1312.24,0.00019178,2]
[421275174,1777323041707,-465.06662959,0.00019178,2]
[421275175,1777323041717,-500.0,0.00019178,2]
[421275176,1777323041727,-1293.01,0.00019178,2]
[421275177,1777323041737,-2577.36,0.00019178,2]
[421275178,1777323041747,-500.0,0.00019178,2]
[421275179,1777323041757,-500.0,0.00019178,2]
[421275180,1777323041767,-500.0,0.00019178,2]
[421275181,1777323041776,-1858.42,0.00019178,2]
[421275182,1777323041787,-1920.05,0.00019178,2]
[421275183,1777323041797,-976.96,0.00019178,2]
[421275184,1777323041806,-500.0,0.00019178,2]
[421275185,1777323041816,-1098.35,0.00019178,2]
[421275186,1777323041826,-500.0,0.00019178,2]
[421275187,1777323041835,-1280.36,0.00019178,2]
[421275188,1777323041845,-363.83979554,0.00019178,2]
[421275189,1777323041855,-500.0,0.00019178,2]
[421275190,1777323041865,-500.0,0.00019178,2]
[421275191,1777323041875,-1066.5,0.00019178,2]
[421275192,1777323041885,-500.0,0.00019178,2]
[421275193,1777323041895,-1282.23,0.00019178,2]
[421275194,1777323041905,-500.0,0.00019178,2]
[421275195,1777323041914,-519.35,0.00019178,2]
[421275196,1777323041924,-500.0,0.00019178,2]
[421275197,1777323041934,-500.0,0.00019178,2]
[421275198,1777323041944,-1196.17,0.00019178,2]
[421275199,1777323041953,-500.0,0.00019178,2]
[421275200,1777323041963,-500.0,0.00019178,2]
[421275201,1777323041972,-500.0,0.00019178,2]
[421275202,1777323041982,-500.0,0.00019178,2]
[421275203,1777323041992,-500.0,0.00019178,2]
[421275204,1777323042001,-1165.12,0.00019178,2]
[421275205,1777323042011,-1426.82,0.00019178,2]
[421275206,1777323042021,-500.0,0.00019178,2]
[421275207,1777323042031,-500.0,0.00019178,2]
[421275208,1777323042041,-327.89302902,0.00019178,2]
[421275209,1777323042050,-635.07,0.00019178,2]
[421275210,1777323042060,-500.0,0.00019178,2]
[421275211,1777323042070,-848.54,0.00019178,2]
[421275212,1777323042080,-500.0,0.00019178,2]
[421275213,1777323042090,-2684.8,0.00019178,2]
[421275214,1777323042100,-500.0,0.00019178,2]
[421275215,1777323042109,-500.0,0.00019178,2]
[421275216,1777323042119,-500.0,0.00019178,2]
[421275217,1777323042128,-500.0,0.00019178,2]
[421275218,1777323042138,-500.0,0.00019178,2]
[421275219,1777323042148,-1885.04,0.00019178,2]
[421275220,1777323042158,-3825.23,0.00019178,2]
[421275221,1777323042168,-516.34,0.00019178,2]
[421275222,1777323042178,-526.1,0.00019178,2]
[421275223,1777323042188,-500.0,0.00019178,2]
[421275224,1777323042197,-500.0,0.00019178,2]
[421275225,1777323042207,-500.0,0.00019178,2]
[421275226,1777323042216,-263.59946103,0.00019178,2]
[421275227,1777323042226,-4093.6,0.00019178,2]
[421275228,1777323042236,-713.95,0.00019178,2]
[421275229,1777323042246,-500.0,0.00019178,2]
[421275230,1777323042256,-5217.85,0.00019178,2]
[421275231,1777323042266,-2599.8,0.00019178,2]